bitfinex/quotes_ETHUSD_20250903
["timestamp","ask_amount","ask_price","bid_price","bid_amount"]
[1756890883902,17.70380306,4312.9,4312.8,0.026]
[1756890885107,17.70380306,4312.9,4312.8,0.319]
[1756890885605,17.70380306,4312.9,4312.8,0.7695]
[1756890887170,13.80280306,4312.9,4312.8,1.2292]
[1756890887372,17.70280306,4312.9,4312.8,0.7787]
[1756890887664,17.70280306,4312.9,4312.8,1.2292]
[1756890887871,17.80180306,4312.9,4312.8,0.026]
[1756890888071,17.70280306,4312.9,4312.8,0.026]
[1756890888687,17.70280306,4312.9,4312.8,0.7695]
[1756890889091,17.70280306,4312.9,4312.8,1.2292]
[1756890889289,17.70280306,4312.9,4312.8,0.7787]
[1756890889494,17.70280306,4312.9,4312.8,1.2292]
[1756890890398,14.70280306,4312.9,4312.8,1.2292]
[1756890891265,17.70280306,4312.9,4312.8,0.319]
[1756890891465,17.70280306,4312.9,4312.8,0.026]
[1756890891660,17.70200306,4312.9,4312.8,0.026]
[1756890893898,14.70200306,4312.9,4312.8,1.2292]
[1756890894098,17.70000306,4312.9,4312.8,1.2292]
[1756890894473,13.80200306,4312.9,4312.8,1.2292]
[1756890894684,17.70000306,4312.9,4312.8,1.2292]
[1756890897274,17.70000306,4312.9,4312.8,0.319]
[1756890898372,17.79900306,4312.9,4312.8,0.026]
[1756890898574,17.70000306,4312.9,4312.8,0.7695]
[1756890899686,17.70000306,4312.9,4312.8,0.319]
[1756890900283,17.70000306,4312.9,4312.8,1.2444]
[1756890902511,1.1128,4312.9,4312.8,1.2444]
[1756890902696,5.0108,4312.9,4312.8,1.36964]
[1756890903097,8.0108,4312.9,4312.8,1.2444]
[1756890904010,4.1128,4312.9,4312.8,1.2444]
[1756890904192,8.0108,4312.9,4312.8,1.2444]
[1756890904804,10.32942551,4312.9,4312.8,0.319]
[1756890905211,8.0108,4312.9,4312.8,1.2444]
[1756890909527,0.001,4313.1,4313.0,3.55527175]
[1756890909699,0.001,4313.5,4313.2,2.31843396]
[1756890910093,0.001,4313.5,4313.4,2.62965674]
[1756890910926,0.001,4313.5,4313.4,3.55505674]
[1756890913499,0.9978,4313.5,4313.3,0.116]
[1756890913700,3.898,4313.4,4313.3,0.469]
[1756890914012,3.898,4313.4,4313.3,2.78741049]
[1756890914198,3.898,4313.4,4313.3,3.09871049]
[1756890914718,3.898,4313.4,4313.3,3.55511049]
[1756890915104,3.898,4313.4,4313.3,1.2367]
[1756890915637,3.898,4313.4,4313.3,0.7803]
[1756890916249,3.8972,4313.4,4313.3,0.7803]
[1756890916426,3.8972,4313.4,4313.3,3.09871049]
[1756890916627,3.8972,4313.4,4313.3,3.55511049]
[1756890916935,0.9978,4313.5,4313.4,2.31835674]
[1756890917128,4.8948,4313.5,4313.4,3.24375674]
[1756890917323,4.8948,4313.5,4313.4,3.55505674]
[1756890919817,3.898,4313.5,4313.4,3.55505674]
[1756890920118,4.8948,4313.5,4313.4,3.55505674]
[1756890920321,4.8948,4313.5,4313.4,4.21390448]
[1756890921313,0.001,4313.5,4313.4,4.21390448]
[1756890924540,0.001,4313.5,4313.4,4.39014873]
[1756890926136,0.001,4313.5,4313.4,8.19014873]
[1756890927634,1e-08,4313.5,4313.4,8.98214873]
[1756890928218,1e-08,4313.5,4313.4,10.76514873]
[1756890928545,1e-08,4313.6,4313.5,2.318303]
[1756890928845,1e-08,4313.7,4313.6,2.31824925]
[1756890929031,1e-08,4313.7,4313.6,2.62954925]
[1756890929236,1e-08,4313.7,4313.6,7.47094925]
[1756890930547,1e-08,4313.7,4313.6,7.56384278]
[1756890930735,1e-08,4313.7,4313.6,11.45984278]
[1756890930920,1e-08,4313.7,4313.6,13.40585735]
[1756890931121,1e-08,4313.7,4313.6,9.50985735]
[1756890931352,1e-08,4313.7,4313.6,13.40585735]
[1756890932549,1e-08,4313.7,4313.6,13.31296382]
[1756890934931,1e-08,4313.7,4313.6,17.50716382]
[1756890936051,1e-08,4313.7,4313.6,17.50616382]
[1756890936548,1e-08,4313.7,4313.6,17.05466382]
[1756890937133,1e-08,4313.7,4313.6,17.54356382]
[1756890939038,1e-08,4313.7,4313.6,17.63645648]
[1756890939226,1e-08,4313.7,4313.6,18.42845648]
[1756890940064,0.001,4314.0,4313.9,2.31808804]
[1756890940274,0.001,4314.0,4313.9,12.675196]
[1756890940421,0.001,4314.0,4313.9,12.990096]
[1756890940628,0.0002,4314.0,4313.9,17.752896]
[1756890940937,0.0002,4314.0,4313.9,17.84578672]
[1756890941138,0.0002,4314.0,4313.9,26.12436427]
[1756890941335,0.001,4314.6,4314.1,0.792]
[1756890941542,0.001,4314.6,4314.5,8.34045223]
[1756890941757,0.001,4314.6,4314.5,12.66635223]
[1756890942174,0.001,4314.6,4314.5,17.42915223]
[1756890942851,0.001,4314.6,4314.5,11.40646567]
[1756890945649,0.001,4314.6,4314.5,15.60066566]
[1756890945980,0.001,4314.6,4314.5,17.86857363]
[1756890946589,0.001,4314.6,4314.5,17.37967363]
[1756890947462,0.001,4314.6,4314.5,17.86857363]
[1756890948752,0.001,4314.6,4314.5,17.37967363]
[1756890949681,0.001,4314.6,4314.5,13.97357363]
[1756890949876,0.001,4314.6,4314.5,17.37867363]
[1756890950660,0.001,4314.6,4314.5,17.86757363]
[1756890958770,0.001,4314.6,4314.5,13.97357363]
[1756890958970,0.001,4314.6,4314.5,17.86657363]
[1756890959579,0.001,4315.1,4315.0,2.3174971]
[1756890959781,0.001,4315.1,4315.0,14.01518366]
[1756890959986,0.001,4315.1,4315.0,8.4175971]
[1756890960191,0.001,4315.1,4315.0,19.16278366]
[1756890960480,0.001,4315.1,4315.0,18.68438366]
[1756890960681,0.001,4315.1,4315.0,20.90207056]
[1756890962304,0.001,4315.1,4315.0,14.126184]
[1756890962887,0.001,4315.1,4315.0,14.435284]
[1756890963094,0.001,4315.1,4315.0,14.879384]
[1756890963514,0.001,4315.1,4315.0,19.07358399]
[1756890963778,0.001,4315.1,4315.0,19.55198399]
[1756890965007,0.0002,4315.1,4315.0,19.55198399]
[1756890965406,0.0002,4315.1,4315.0,19.07358399]
[1756890967080,0.0002,4315.1,4315.0,18.62948399]
[1756890968984,0.0002,4315.1,4315.0,19.07358399]
[1756890969479,0.001,4315.3,4315.2,6.51138968]
[1756890969685,0.001,4315.3,4315.2,12.15316705]
[1756890970107,0.001,4315.3,4315.2,15.95316705]
[1756890970816,0.6206,4315.3,4315.2,15.95316705]
[1756890971483,0.1263,4315.3,4315.2,15.95316705]
[1756890972020,1.0565,4315.3,4315.2,10.31138968]
[1756890972190,1.0565,4315.3,4315.2,14.20338968]
[1756890973823,1.0565,4315.3,4315.2,10.31138968]
[1756890974023,1.0565,4315.3,4315.2,14.20338968]
[1756890975004,0.6206,4315.3,4315.2,14.20338968]
[1756890975214,0.1263,4315.3,4315.2,14.20338968]
[1756890975434,0.001,4315.3,4315.2,14.20338968]
[1756890978229,0.001,4315.3,4315.2,14.95658968]
[1756890978427,0.001,4315.3,4315.2,16.87379836]
[1756890978738,0.001,4315.3,4315.2,16.12059836]
[1756890981944,0.001,4315.3,4315.2,16.11959836]
[1756890985230,0.1263,4315.3,4315.2,10.31138968]
[1756890985611,0.001,4315.3,4315.2,14.51148968]
[1756890985817,0.001,4315.3,4315.2,15.43398968]
[1756890986014,0.022,4315.8,4315.7,2.3171212]
[1756890986220,0.022,4315.8,4315.7,6.43983332]
[1756890986431,0.022,4315.8,4315.7,2.66483332]
[1756890986754,0.022,4315.8,4315.7,10.35583332]
[1756890986755,0.1473,4315.8,4315.7,10.35583332]
[1756890988057,0.022,4315.8,4315.7,11.58743332]
[1756890988215,0.022,4315.8,4315.7,17.61011988]
[1756890988917,0.022,4315.8,4315.7,11.58743332]
[1756890989548,0.0212,4315.8,4315.7,11.58743332]
[1756890990446,0.0212,4315.8,4315.7,11.10903332]
[1756890990627,0.0212,4315.8,4315.7,10.66493332]
[1756890991012,0.0222,4315.8,4315.7,6.77393332]
[1756890991216,0.0222,4315.8,4315.7,6.46483332]
[1756890991217,0.3352,4315.8,4315.7,6.46483332]
[1756890991554,0.3352,4315.8,4315.7,10.35483332]
[1756890991718,0.3352,4315.8,4315.7,6.64070522]
[1756890991916,0.3352,4315.8,4315.7,10.53070522]
[1756890992109,0.3352,4315.8,4315.7,6.64070522]
[1756890992343,0.3352,4315.8,4315.7,10.53070522]
[1756890992916,0.3352,4315.8,4315.7,6.64070522]
[1756890993117,0.3352,4315.8,4315.7,10.53070522]
[1756890996150,0.3352,4315.8,4315.7,14.72470521]
[1756890997063,0.3352,4315.8,4315.7,14.72470521]
[1756890998648,0.0222,4315.8,4315.7,14.72470521]
[1756890999155,0.0222,4315.8,4315.7,15.01150521]
[1756890999330,0.0222,4315.8,4315.7,11.77750522]
[1756890999853,0.0222,4315.8,4315.7,7.88750522]
[1756891000041,0.0222,4315.8,4315.7,11.77750522]
[1756891000447,0.0222,4315.8,4315.7,15.97150521]
[1756891001336,0.0222,4315.8,4315.7,11.77750522]
[1756891002156,0.0222,4315.8,4315.7,11.28480522]
[1756891006266,0.0222,4315.8,4315.7,11.77750522]
[1756891006830,0.0222,4315.8,4315.7,10.53070522]
[1756891007033,0.0222,4315.8,4315.7,11.28480522]
[1756891008862,0.3352,4315.8,4315.7,10.52970522]
[1756891009072,0.3352,4315.8,4315.7,10.2979931]
[1756891009255,1.0515,4315.8,4315.7,6.3221212]
[1756891010064,1.0515,4315.8,4315.7,2.4331212]
[1756891011363,0.8014,4315.8,4315.7,2.4331212]
[1756891012165,0.3352,4315.8,4315.7,2.4331212]
[1756891013265,0.8014,4315.8,4315.7,2.4331212]
[1756891013783,0.0222,4315.8,4315.7,2.4331212]
[1756891013946,0.0222,4315.8,4315.7,2.7199212]
[1756891014159,0.0214,4315.8,4315.7,2.7199212]
[1756891015373,0.0214,4315.8,4315.7,3.1872212]
[1756891015942,0.0214,4315.8,4315.7,2.4331212]
[1756891017652,0.0214,4315.8,4315.7,3.6799212]
[1756891018580,0.0214,4315.8,4315.7,5.06590267]
[1756891019563,0.0214,4315.8,4315.7,7.99390267]
[1756891019975,0.0214,4315.8,4315.7,8.90820267]
[1756891020586,0.0214,4315.8,4315.7,8.42390267]
[1756891020901,0.0214,4315.8,4315.7,8.47820267]
[1756891021099,0.0214,4315.8,4315.7,8.90820267]
[1756891021397,0.0214,4315.8,4315.7,12.70820267]
[1756891021964,0.001,4316.7,4316.5,2.31669176]
[1756891022266,0.001,4316.7,4316.6,6.55230727]
[1756891022464,0.001,4316.7,4316.6,7.76450727]
[1756891022667,0.001,4316.7,4316.6,11.56450727]
[1756891030184,0.022,4316.8,4316.7,3.10858442]
[1756891030514,1e-08,4316.8,4316.7,4.02288442]
[1756891030711,1e-08,4316.8,4316.7,6.15282847]
[1756891030881,0.001,4317.2,4317.1,2.31636978]
[1756891031082,0.001,4317.2,4317.1,7.98436978]
[1756891031285,1e-08,4317.4,4317.3,3.10826247]
[1756891031587,1e-08,4317.4,4317.3,10.91126247]
[1756891031798,1e-08,4317.4,4317.3,13.75482108]
[1756891033314,1e-08,4317.6,4317.5,3.10815518]
[1756891033487,1e-08,4317.6,4317.5,6.99415518]
[1756891033686,1e-08,4317.6,4317.5,7.72205518]
[1756891033912,1e-08,4317.6,4317.5,10.47426315]
[1756891034077,1e-08,4317.6,4317.5,14.27426315]
[1756891034283,1e-08,4317.9,4317.6,3.792]
[1756891034479,1e-08,4317.9,4317.8,13.4625181]
[1756891034700,1e-08,4317.9,4317.8,13.8764181]
[1756891034902,1e-08,4317.9,4317.8,9.53065686]
[1756891035095,1e-08,4317.9,4317.8,13.33065686]
[1756891035315,1e-08,4317.9,4317.8,20.68518071]
[1756891037585,1e-08,4317.9,4317.8,20.85914086]
[1756891038587,0.02120001,4318.8,4318.7,2.31551161]
[1756891038793,0.02120001,4318.8,4318.7,8.4456218]
[1756891039030,0.02120001,4318.8,4318.7,9.7738218]
[1756891039190,0.02120001,4318.8,4318.7,10.2354218]
[1756891040021,0.02120001,4318.8,4318.7,5.4351218]
[1756891040328,0.02120001,4318.8,4318.7,9.0222218]
[1756891040830,0.02120001,4318.8,4318.7,9.3201218]
[1756891042596,0.02120001,4318.8,4318.7,5.1372218]
[1756891042814,0.12520001,4318.8,4318.7,8.5606218]
[1756891043227,0.02120001,4318.8,4318.7,8.5606218]
[1756891043809,0.58990001,4318.8,4318.7,8.5606218]
[1756891044017,0.58990001,4318.8,4318.7,4.21251161]
[1756891044192,1.04690001,4318.8,4318.7,8.09751161]
[1756891044392,1.04690001,4318.8,4318.7,4.21251161]
[1756891044592,1.04690001,4318.8,4318.7,8.01251161]
[1756891044938,1.04690001,4318.8,4318.7,11.89751161]
[1756891045600,0.58990001,4318.8,4318.7,11.89751161]
[1756891046815,0.58990001,4318.8,4318.7,8.01251161]
[1756891047013,0.58990001,4318.8,4318.7,11.89751161]
[1756891048526,0.59090001,4318.8,4318.7,11.89751161]
[1756891049326,0.12620001,4318.8,4318.7,11.89751161]
[1756891050927,0.12620001,4318.8,4318.7,11.89651161]
[1756891052799,0.58210001,4318.8,4318.7,11.89651161]
[1756891053224,1.03910001,4318.8,4318.7,8.01251161]
[1756891053550,2.03590001,4318.8,4318.7,4.0]
[1756891054601,1.57890001,4318.8,4318.7,0.116]
[1756891054842,2.03590001,4318.8,4318.7,0.116]
[1756891055055,2.03590001,4318.8,4318.4,3.8]
[1756891055256,0.9968,4318.1,4318.0,2.31588698]
[1756891055551,2.0157,4318.1,4318.0,6.19988698]
[1756891055732,2.0157,4318.1,4318.0,14.30988697]
[1756891056133,2.0157,4318.1,4318.0,10.11588698]
[1756891056514,1.2992,4318.1,4318.0,10.11588698]
[1756891058719,0.9968,4318.1,4318.0,12.06445661]
[1756891059042,0.9968,4318.5,4318.4,2.31567247]
[1756891059340,0.02220001,4318.8,4318.7,2.31551161]
[1756891059538,0.02220001,4318.8,4318.7,6.19951161]
[1756891059732,0.02220001,4318.8,4318.7,10.11551161]
[1756891059929,1.01900001,4318.8,4318.7,10.11551161]
[1756891060238,1.12580001,4318.8,4318.7,10.11551161]
[1756891060810,0.12900001,4318.8,4318.7,10.11551161]
[1756891061414,0.02220001,4318.8,4318.7,10.11551161]
[1756891062139,0.02220001,4318.8,4318.7,11.69305157]
[1756891062347,0.02220001,4318.8,4318.7,12.62105157]
[1756891063016,0.02140001,4318.8,4318.7,12.62105157]
[1756891063741,1.12500001,4318.8,4318.7,10.11551161]
[1756891063945,1.58090001,4318.8,4318.7,10.11551161]
[1756891064237,9.38972386,4318.8,4318.7,3.916]
[1756891064636,9.38972386,4318.8,4318.7,6.23151161]
[1756891065041,9.38972386,4318.8,4318.7,2.43151161]
[1756891065539,8.05053692,4318.8,4318.7,2.43151161]
[1756891066443,1.12500001,4318.8,4318.7,2.43151161]
[1756891066631,1.12500001,4318.8,4318.7,8.39647907]
[1756891066632,1.01820001,4318.8,4318.7,8.39647907]
[1756891066812,1.01820001,4318.8,4318.7,8.88517907]
[1756891067019,0.02140001,4318.8,4318.7,8.44587907]
[1756891067218,0.02140001,4318.8,4318.7,8.88517907]
[1756891067619,1.01820001,4318.8,4318.7,8.88517907]
[1756891067929,0.02140001,4318.8,4318.7,8.88517907]
[1756891070259,0.02140001,4318.8,4318.7,12.68517907]
[1756891072249,0.02140001,4318.8,4318.7,18.70051598]
[1756891072427,1e-08,4318.8,4318.7,18.70051598]
[1756891072927,1e-08,4318.8,4318.7,18.79328692]
[1756891075231,1e-08,4318.8,4318.7,8.89395001]
[1756891075427,1e-08,4318.8,4318.7,12.77695001]
[1756891077329,1e-08,4319.3,4319.2,2.31524356]
[1756891077559,1e-08,4319.3,4319.2,8.09424356]
[1756891077727,1e-08,4319.3,4319.2,9.31274356]
[1756891077923,1e-08,4319.3,4319.2,13.11274356]
[1756891078145,1e-08,4319.3,4319.2,14.74831548]
[1756891078662,1e-08,4319.9,4319.7,2.31497557]
[1756891078865,1e-08,4319.9,4319.8,6.31392198]
[1756891079156,1e-08,4319.9,4319.8,7.53242198]
[1756891079346,1e-08,4319.9,4319.8,9.11869543]
[1756891080460,1e-08,4319.9,4319.8,12.91869543]
[1756891083932,0.001,4320.7,4320.0,3.0]
[1756891084132,0.001,4320.7,4320.2,5.31470765]
[1756891084467,1e-08,4320.8,4320.7,2.31443978]
[1756891084756,1e-08,4320.8,4320.7,6.46806376]
[1756891084957,1e-08,4320.8,4320.7,7.22146376]
[1756891085161,1e-08,4320.8,4320.7,6.46806376]
[1756891085540,1e-08,4320.8,4320.7,2.58606376]
[1756891085857,1e-08,4320.8,4320.7,7.16356514]
[1756891086863,1e-08,4320.8,4320.7,4.03496514]
[1756891087158,1e-08,4320.8,4320.7,8.09424995]
[1756891087376,0.00100001,4320.8,4320.7,8.57754995]
[1756891087570,0.00020001,4320.8,4320.7,8.57754995]
[1756891088229,0.00020001,4320.8,4320.7,9.36954995]
[1756891088860,0.00020001,4320.8,4320.7,13.16954995]
[1756891089492,0.00020001,4320.8,4320.7,8.49554995]
[1756891089672,0.00020001,4320.8,4320.7,12.37754995]
[1756891090579,0.00020001,4320.8,4320.7,8.49554995]
[1756891090751,0.00020001,4320.8,4320.7,12.37654995]
[1756891092148,0.00020001,4320.8,4320.7,11.90894995]
[1756891092369,0.00020001,4320.8,4320.7,8.49554995]
[1756891092550,0.00020001,4320.8,4320.7,12.37654995]
[1756891093293,0.00020001,4320.8,4320.7,8.49554995]
[1756891093495,0.00020001,4320.8,4320.7,12.37654995]
[1756891093683,0.00020001,4320.8,4320.7,7.54464995]
[1756891093884,0.00020001,4320.8,4320.7,11.42564995]
[1756891094684,0.00020001,4320.8,4320.7,12.37654995]
[1756891095073,0.00020001,4320.8,4320.7,11.89324995]
[1756891095501,0.00020001,4320.8,4320.7,12.37654995]
[1756891095702,0.00020001,4320.8,4320.7,7.54464995]
[1756891096003,0.00020001,4320.8,4320.7,11.89324995]
[1756891097499,0.10370001,4320.8,4320.7,10.44434857]
[1756891097701,0.10370001,4320.8,4320.7,6.56334857]
[1756891097882,1.01490001,4320.8,4320.7,10.17272459]
[1756891098360,1.01490001,4320.8,4320.7,6.29172459]
[1756891098763,1.01490001,4320.8,4320.7,10.17272459]
[1756891098963,1.01490001,4320.8,4320.6,2.43048418]
[1756891098964,0.9968,4320.7,4320.6,2.43048418]
[1756891099316,2.0115,4320.7,4320.6,3.996]
[1756891100013,2.0115,4320.7,4320.6,0.116]
[1756891100166,2.0115,4320.7,4320.6,3.996]
[1756891100504,2.0115,4320.7,4320.4,2.43057817]
[1756891100658,0.9077,4320.6,4320.5,3.88]
[1756891100881,1.0182,4320.6,4320.5,3.88]
[1756891101323,1.0182,4320.6,4320.4,3.916]
[1756891101533,0.9968,4320.2,4319.4,4.09411455]
[1756891101682,0.9968,4319.9,4319.8,0.138]
[1756891101882,1.2962,4319.9,4319.8,6.33292198]
[1756891102191,2.0135,4319.9,4319.8,7.818]
[1756891102412,2.0135,4319.9,4319.8,10.13292198]
[1756891103288,1.7499,4319.9,4319.8,10.13292198]
[1756891103595,2.0135,4319.9,4319.8,7.818]
[1756891104013,2.0135,4319.9,4319.8,10.13292198]
[1756891104213,1.7499,4319.9,4319.8,6.25292198]
[1756891104376,1.2962,4319.9,4319.8,10.13392198]
[1756891104818,0.9968,4319.9,4319.8,11.37881674]
[1756891104982,1.69265145,4320.6,4320.5,2.31454692]
[1756891105182,0.99700001,4320.8,4320.7,2.31443978]
[1756891105382,0.99700001,4320.8,4320.7,6.19543978]
[1756891105589,0.00020001,4320.8,4320.7,7.05803845]
[1756891105789,0.99700001,4320.8,4320.7,7.05803845]
[1756891106192,0.99700001,4320.8,4320.7,10.85803845]
[1756891106590,0.00020001,4320.8,4320.7,11.14383845]
[1756891106789,0.00020001,4320.8,4320.7,11.61143845]
[1756891107439,0.00020001,4320.8,4320.7,12.09473845]
[1756891111942,0.00040001,4321.3,4321.2,2.31417198]
[1756891112104,0.00040001,4321.3,4321.2,8.43601424]
[1756891112299,0.00040001,4321.3,4321.2,9.75871424]
[1756891113051,0.00040001,4321.3,4321.2,13.55871424]
[1756891113345,1e-08,4321.7,4321.6,2.31395779]
[1756891113493,1e-08,4321.7,4321.6,6.65675717]
[1756891113694,1e-08,4321.7,4321.6,11.77145717]
[1756891113943,1e-08,4321.7,4321.6,15.57145717]
[1756891114142,0.4865,4324.0,4323.7,2.31283391]
[1756891114341,0.4865,4324.0,4323.7,6.19283391]
[1756891114507,0.9968,4323.9,4323.7,6.65163391]
[1756891114710,0.1501,4323.8,4323.7,10.90567149]
[1756891115096,1.1469,4323.8,4323.7,11.08121799]
[1756891117516,0.022,4323.8,4323.7,11.08121799]
[1756891117923,0.022,4323.8,4323.7,11.38711799]
[1756891118430,0.022,4323.8,4323.7,12.28791799]
[1756891118617,1e-08,4323.8,4323.7,15.28791799]
[1756891118818,1e-08,4323.8,4323.7,11.40791799]
[1756891119125,1e-08,4323.8,4323.7,15.28691799]
[1756891120351,1e-08,4323.8,4323.7,16.07891799]
[1756891120520,1e-08,4323.8,4323.7,12.19991799]
[1756891120846,1e-08,4323.8,4323.7,16.07891799]
[1756891122718,1e-08,4324.8,4324.7,2.31229911]
[1756891122933,1e-08,4324.8,4324.7,8.19952902]
[1756891123121,1e-08,4324.8,4324.7,13.19822902]
[1756891123522,1e-08,4324.8,4324.7,17.00022902]
[1756891123825,1e-08,4324.8,4324.7,17.69494282]
[1756891124162,1e-08,4324.8,4324.7,17.81094282]
[1756891124454,1e-08,4325.8,4325.5,2.31184633]
[1756891124658,1e-08,4325.8,4325.7,2.31176456]
[1756891124951,1e-08,4325.8,4325.7,2.73286456]
[1756891125251,1e-08,4325.8,4325.7,6.97486456]
[1756891125421,1e-08,4325.8,4325.7,7.43366456]
[1756891126133,1e-08,4325.8,4325.7,6.97486456]
[1756891126331,1e-08,4325.8,4325.7,8.95135411]
[1756891126957,1e-08,4325.8,4325.7,11.62565411]
[1756891128631,1e-08,4325.8,4325.7,11.93155411]
[1756891129244,1e-08,4325.8,4325.7,12.37355411]
[1756891129453,1e-08,4325.8,4325.7,11.93155411]
[1756891129653,1e-08,4325.8,4325.7,12.37355411]
[1756891129823,1e-08,4325.8,4325.7,12.83235411]
[1756891130359,1e-08,4325.8,4325.7,12.83035411]
[1756891130660,1e-08,4325.8,4325.7,16.62235411]
[1756891131526,1e-08,4325.8,4325.7,16.50715411]
[1756891131727,1e-08,4325.8,4325.7,16.62235411]
[1756891132161,1e-08,4327.8,4327.7,2.31069621]
[1756891132363,1e-08,4327.8,4327.7,11.99076583]
[1756891132529,1e-08,4327.8,4327.7,13.31266583]
[1756891132729,1e-08,4327.8,4327.7,17.11266583]
[1756891135334,1e-08,4327.8,4327.7,13.23266583]
[1756891135538,1e-08,4327.8,4327.7,17.11466583]
[1756891135839,1e-08,4327.8,4327.7,15.86386583]
[1756891136032,1e-08,4327.8,4327.7,17.11466583]
[1756891136265,1e-08,4327.8,4327.7,16.9081102]
[1756891136446,0.50770001,4328.8,4328.7,2.3101624]
[1756891136647,0.50770001,4328.8,4328.7,7.9681624]
[1756891136648,2.06580001,4328.8,4328.7,7.9681624]
[1756891136841,1.63260001,4328.8,4328.7,8.0833624]
[1756891137046,2.06580001,4328.8,4328.7,8.0833624]
[1756891137364,2.06580001,4328.8,4328.7,4.2023624]
[1756891137567,2.06580001,4328.8,4328.7,8.0833624]
[1756891139776,2.06580001,4328.8,4328.7,1.8922]
[1756891139976,2.06580001,4328.8,4328.7,5.7722]
[1756891140375,2.06580001,4328.8,4328.7,9.5722]
[1756891140590,2.06580001,4328.8,4328.7,5.6922]
[1756891140749,2.06580001,4328.8,4328.7,9.5722]
[1756891141652,2.06580001,4328.8,4328.7,5.6922]
[1756891141849,2.06580001,4328.8,4328.7,9.5712]
[1756891142096,2.06680001,4328.8,4328.7,5.6922]
[1756891142282,0.9968,4327.7,4327.6,4.08674601]
[1756891142578,2.0376,4327.7,4327.6,2.31074601]
[1756891142877,2.0376,4327.7,4327.6,3.9152]
[1756891143078,2.0376,4327.7,4327.6,7.7952]
[1756891143492,2.0376,4327.7,4327.6,3.9152]
[1756891143657,2.0376,4327.7,4327.6,7.7952]
[1756891143854,2.0376,4327.7,4327.6,7.68]
[1756891144182,2.0376,4327.7,4327.6,3.88]
[1756891144679,5.0376,4327.7,4327.5,3.88]
[1756891144851,0.9097,4327.6,4327.5,3.88]
[1756891145046,3.9097,4327.6,4327.5,3.88]
[1756891145249,1.0438,4327.6,4327.5,3.88]
[1756891145885,0.9968,4327.3,4327.2,0.1152]
[1756891146051,0.9968,4326.9,4326.8,4.0172]
[1756891146251,2.0377,4326.9,4326.8,4.0172]
[1756891146663,2.0377,4326.9,4326.8,0.022]
[1756891146867,5.06658904,4326.9,4326.8,0.022]
[1756891147095,5.0377,4326.9,4326.8,0.022]
[1756891147385,7.34882343,4326.9,4326.8,0.022]
[1756891147888,5.0377,4326.9,4326.8,0.022]
[1756891148959,7.34882343,4326.9,4326.8,0.022]
[1756891149557,8.14082343,4326.9,4326.8,0.022]
[1756891149762,12.02482343,4326.9,4326.8,0.022]
[1756891150175,13.80182343,4326.9,4326.8,0.022]
[1756891151058,9.91782343,4326.9,4326.8,0.022]
[1756891151385,0.099,4326.9,4326.8,0.022]
[1756891151585,0.4795,4327.3,4326.8,0.022]
[1756891151586,0.5947,4327.3,4326.8,0.022]
[1756891151787,0.4795,4327.8,4326.8,0.3124]
[1756891151996,0.9968,4327.3,4327.2,2.42611793]
[1756891152166,0.9968,4327.3,4327.2,2.71651793]
[1756891152359,0.9968,4327.3,4327.2,3.16171793]
[1756891152861,0.9968,4327.3,4327.2,2.42611793]
[1756891153171,1.0958,4327.3,4327.2,0.1152]
[1756891153868,2.0373,4327.3,4327.2,0.1152]
[1756891154460,0.9968,4326.9,4326.8,2.33317685]
[1756891154659,0.9968,4326.9,4326.8,2.62357685]
[1756891154864,0.9968,4326.9,4326.8,4.14694639]
[1756891155477,0.9968,4327.2,4327.1,2.31099967]
[1756891155985,0.9968,4327.2,4327.1,2.42619967]
[1756891156561,1.0958,4327.2,4327.1,0.1152]
[1756891157575,1.0958,4327.2,4327.1,2.71661661]
[1756891157576,0.9968,4327.2,4327.1,2.71661661]
[1756891157789,0.9968,4327.2,4327.1,3.16181661]
[1756891157961,0.9968,4327.2,4327.1,1.3378]
[1756891158167,0.9968,4327.2,4327.1,4.2470098]
[1756891159497,0.1152,4328.4,4327.1,1.93599319]
[1756891159699,0.9968,4327.6,4327.5,2.310803]
[1756891159899,0.9968,4327.6,4327.5,8.21088771]
[1756891160464,0.9968,4327.6,4327.5,8.32608771]
[1756891160870,0.996,4327.6,4327.5,8.32608771]
[1756891162129,0.02887836,4328.5,4328.0,2.31048457]
[1756891162420,0.996,4327.9,4327.8,2.3106401]
[1756891162717,0.996,4327.9,4327.8,2.7162401]
[1756891163727,2.0365,4327.9,4327.8,0.1152]
[1756891163930,0.996,4327.2,4327.1,2.31501661]
[1756891164271,0.996,4327.2,4327.1,2.43021661]
[1756891164917,1.5781,4327.2,4327.1,0.004]
[1756891165074,1.0986,4327.2,4327.1,0.004]
[1756891165524,0.996,4327.2,4327.1,2.43021661]
[1756891165826,1.1022,4327.2,4327.1,0.1192]
[1756891166176,1.61058704,4327.2,4327.1,0.1192]
[1756891166408,4.37645024,4327.2,4327.1,0.1192]
[1756891166721,4.37645024,4327.2,4327.1,0.004]
[1756891166722,5.28365024,4327.2,4327.1,0.004]
[1756891167003,8.2547632,4327.2,4327.1,0.004]
[1756891167886,12.1507632,4327.2,4327.1,0.004]
[1756891168075,8.2547632,4327.2,4327.1,0.004]
[1756891168271,12.1507632,4327.2,4327.1,0.004]
[1756891169100,12.1527632,4327.2,4327.1,0.004]
[1756891171733,11.1567632,4327.2,4327.1,0.004]
[1756891172091,10.7028632,4327.2,4327.1,0.004]
[1756891172316,12.1527632,4327.2,4327.1,0.004]
[1756891172990,11.1567632,4327.2,4327.1,0.004]
[1756891173191,12.1527632,4327.2,4327.1,0.004]
[1756891175190,7.5209632,4327.2,4327.1,0.004]
[1756891175485,10.4224632,4327.2,4327.1,0.004]
[1756891175913,11.8755632,4327.2,4327.1,0.004]
[1756891176117,12.1323632,4327.2,4327.1,0.004]
[1756891176493,8.2343632,4327.2,4327.1,0.004]
[1756891176692,12.1323632,4327.2,4327.1,0.004]
[1756891177094,8.2343632,4327.2,4327.1,0.004]
[1756891177299,11.8745632,4327.2,4327.1,0.004]
[1756891177625,12.1313632,4327.2,4327.1,0.004]
[1756891179114,24.33600651,4327.2,4327.1,0.004]
[1756891179998,7.09912343,4326.9,4326.8,0.022]